bitfinex/quotes_SOLUSD_20250902
["timestamp","ask_amount","ask_price","bid_price","bid_amount"]
[1756818113941,7.30693285,198.71,198.7,13.59559401]
[1756818114372,7.30693285,198.73,198.7,18.62830664]
[1756818114582,7.30693285,198.73,198.71,0.69]
[1756818114945,7.30693285,198.74,198.72,0.69]
[1756818115271,7.30693285,198.74,198.73,56.25559401]
[1756818115868,7.30693285,198.74,198.73,42.66]
[1756818116037,7.97693285,198.74,198.67,13.73775558]
[1756818116369,7.30693285,198.68,198.64,18.62981269]
[1756818116538,7.30693285,198.7,198.66,13.59559401]
[1756818116738,7.30693285,198.7,198.68,13.59559401]
[1756818116969,5.70173041,198.74,198.69,42.66]
[1756818117256,7.30693285,198.7,198.69,42.66]
[1756818119168,26.0,198.73,198.69,43.35]
[1756818119476,0.06,198.7,198.69,61.28855993]
[1756818119677,0.06,198.7,198.69,68.59549278]
[1756818120043,0.06,198.7,198.69,69.28549278]
[1756818120764,0.06,198.7,198.69,62.1207215]
[1756818120978,0.06,198.7,198.69,56.23559401]
[1756818121154,0.06,198.7,198.69,62.1007215]
[1756818121352,0.06,198.7,198.69,69.40765435]
[1756818122850,0.06,198.7,198.69,62.1007215]
[1756818123054,0.06,198.7,198.69,95.40765435]
[1756818123371,0.06,198.72,198.71,39.73775558]
[1756818123572,0.06,198.72,198.71,47.04468843]
[1756818123749,0.06,198.72,198.71,47.73468843]
[1756818124189,0.06,198.72,198.71,95.38714779]
[1756818124354,1e-08,198.72,198.71,95.38714779]
[1756818124556,1e-08,198.72,198.71,149.68714779]
[1756818126160,1e-08,198.74,198.73,39.73775558]
[1756818126352,1e-08,198.74,198.73,89.66468843]
[1756818126548,1e-08,198.74,198.73,90.35468843]
[1756818126772,1e-08,198.74,198.73,64.35468843]
[1756818127682,1e-08,198.85,198.73,64.35468843]
[1756818127683,1e-08,198.85,198.78,0.14216157]
[1756818127982,1e-08,198.85,198.83,0.14216157]
[1756818128280,1e-08,198.85,198.84,68.69385761]
[1756818128487,1e-08,198.85,198.84,68.67385761]
[1756818128862,1e-08,198.85,198.84,19.45692476]
[1756818129063,1e-08,198.85,198.84,68.67385761]
[1756818130599,1e-08,198.85,198.84,13.73775558]
[1756818130800,0.66000001,198.85,198.84,13.73775558]
[1756818131089,1e-08,198.85,198.84,61.36692476]
[1756818131766,1e-08,198.85,198.84,56.33775558]
[1756818131967,1e-08,198.85,198.84,61.36692476]
[1756818132286,1e-08,198.85,198.84,69.34385761]
[1756818133064,1e-08,198.85,198.84,76.65079046]
[1756818133467,1e-08,198.87,198.86,39.73775558]
[1756818133911,1e-08,198.87,198.86,93.84490863]
[1756818134195,1e-08,198.87,198.86,88.01641896]
[1756818134392,1e-08,198.87,198.86,98.87357201]
[1756818135267,1e-08,198.87,198.86,44.76641896]
[1756818135470,1e-08,198.87,198.86,98.18357201]
[1756818135669,1e-08,198.87,198.86,87.32641896]
[1756818135970,1e-08,198.87,198.86,98.18357201]
[1756818136374,1e-08,198.87,198.86,44.76641896]
[1756818136799,1e-08,198.87,198.86,98.18357201]
[1756818136969,1e-08,198.87,198.86,45.43641896]
[1756818137172,1e-08,198.87,198.86,98.85357201]
[1756818137675,1e-08,198.87,198.86,45.43641896]
[1756818137989,1e-08,198.87,198.86,98.18357201]
[1756818138216,1e-08,198.87,198.86,56.29357201]
[1756818138368,1e-08,198.87,198.86,98.85357201]
[1756818138569,1e-08,198.87,198.86,56.29357201]
[1756818138873,1e-08,198.87,198.86,55.62357201]
[1756818139074,1e-08,198.87,198.86,61.30641896]
[1756818139377,1e-08,198.87,198.86,72.16357201]
[1756818139568,1e-08,198.87,198.86,72.69141044]
[1756818139769,1e-08,198.87,198.86,72.83357201]
[1756818140869,0.06,198.89,198.88,26.0]
[1756818141085,0.06,198.89,198.88,93.13490863]
[1756818142397,0.06,198.91,198.89,13.73775558]
[1756818142709,0.66,199.0,198.89,13.73775558]
[1756818142710,0.66,199.0,198.92,0.14216157]
[1756818142996,0.66,199.0,198.97,13.59559401]
[1756818143196,0.66,199.0,198.99,13.73775558]
[1756818143409,16.56015996,199.1,199.0,0.14216157]
[1756818143410,0.66,199.03,199.0,0.14216157]
[1756818143616,26.0,199.06,199.02,13.59559401]
[1756818143815,10.85715305,199.03,199.02,13.59559401]
[1756818144015,10.85715305,199.03,199.02,42.52]
[1756818144196,0.66,199.03,199.02,42.52]
[1756818144393,26.0,199.0,198.9,10.85715305]
[1756818144621,10.85715305,198.96,198.91,56.11559401]
[1756818144805,0.66,198.95,198.92,0.14216157]
[1756818145006,26.0,199.0,198.88,26.0]
[1756818145007,0.66,198.98,198.94,13.59559401]
[1756818145200,0.66,198.98,198.93,42.52]
[1756818145201,11.51715305,198.97,198.96,13.59559401]
[1756818145507,11.51715305,198.97,198.96,56.11559401]
[1756818145700,0.66,198.97,198.92,0.14216157]
[1756818145908,0.66,198.96,198.94,13.73775558]
[1756818146103,10.85715305,198.95,198.94,0.14216157]
[1756818146301,10.85715305,198.95,198.94,56.25775558]
[1756818146710,0.66,198.95,198.94,13.59559401]
[1756818146907,11.51715305,198.95,198.94,56.11559401]
[1756818147107,0.66,198.95,198.94,56.11559401]
[1756818147408,11.51715305,198.95,198.94,56.11559401]
[1756818147803,31.02493443,199.01,198.95,13.59559401]
[1756818147804,10.85715305,198.96,198.95,13.59559401]
[1756818148423,11.51715305,198.96,198.95,13.59559401]
[1756818148595,0.66,198.96,198.95,13.59559401]
[1756818148796,11.51715305,198.96,198.95,13.59559401]
[1756818148997,0.66,198.96,198.95,13.59559401]
[1756818149207,11.51715305,198.96,198.95,13.59559401]
[1756818149598,11.51715305,198.96,198.95,42.5]
[1756818149802,11.51715305,198.96,198.92,13.59559401]
[1756818150117,10.85715305,198.93,198.87,13.59559401]
[1756818150318,10.85715305,198.93,198.86,15.88581643]
[1756818150319,10.85715305,198.92,198.9,0.14216157]
[1756818150620,10.85715305,198.95,198.93,0.14216157]
[1756818150798,11.51715305,198.96,198.95,13.59559401]
[1756818150999,29.14238223,199.1,198.95,13.59559401]
[1756818151199,10.85715305,199.0,198.97,13.59559401]
[1756818151401,0.66,199.02,198.99,13.59559401]
[1756818151741,0.66,199.01,199.0,42.5]
[1756818152536,0.66,199.05,199.01,13.59559401]
[1756818152710,20.0,199.15,199.01,13.59559401]
[1756818152711,0.66,199.04,199.01,13.59559401]
[1756818152900,0.66,199.03,199.01,13.59559401]
[1756818153094,10.85715305,199.02,199.0,0.14216157]
[1756818153331,10.85715305,199.02,199.01,56.07559401]
[1756818153630,26.0,199.06,199.02,13.59559401]
[1756818153631,10.85715305,199.04,199.02,13.59559401]
[1756818153934,11.51715305,199.03,198.95,0.14216157]
[1756818154098,10.85715305,199.04,198.98,10.85715305]
[1756818154305,10.85715305,199.05,198.99,56.21775558]
[1756818154537,10.85715305,199.04,199.01,13.73775558]
[1756818154828,0.66,199.04,199.03,13.59559401]
[1756818154999,0.66,199.04,199.03,56.07559401]
[1756818155205,11.51715305,199.04,199.03,56.07559401]
[1756818155518,11.51715305,199.04,199.0,13.59559401]
[1756818155701,0.66,199.03,199.02,13.59559401]
[1756818156326,0.66,199.07,199.03,13.59559401]
[1756818156533,10.85715305,199.05,199.03,13.59559401]
[1756818156698,0.66,199.05,199.03,13.59559401]
[1756818156899,10.85715305,199.04,199.03,13.59559401]
[1756818157304,0.66,199.08,199.03,13.59559401]
[1756818157508,10.85715305,199.06,199.03,13.59559401]
[1756818157704,0.66,199.07,199.03,13.59559401]
[1756818157905,10.85715305,199.07,199.03,18.61992259]
[1756818158123,0.06,199.09,199.03,18.61992259]
[1756818158304,10.85715305,199.07,199.03,18.61992259]
[1756818158505,0.06,199.09,199.05,13.59559401]
[1756818158703,10.85715305,199.07,199.06,42.46]
[1756818159026,11.51715305,199.07,198.88,45.13953403]
[1756818159228,26.0,199.08,198.99,0.14216157]
[1756818159229,26.7,199.06,198.99,0.14216157]
[1756818159433,26.7,199.06,199.01,13.73775558]
[1756818159730,36.85715305,199.06,199.01,13.73775558]
[1756818159914,10.85715305,199.04,199.03,13.59559401]
[1756818160111,0.7,199.04,199.03,13.59559401]
[1756818160310,11.55715305,199.04,198.99,0.14216157]
[1756818160619,10.85715305,199.02,199.01,13.59559401]
[1756818161124,0.7,199.03,199.01,13.59559401]
[1756818161313,10.85715305,199.03,199.01,13.59559401]
[1756818161512,0.7,199.05,199.01,13.59559401]
[1756818161712,26.7,199.08,199.02,0.14216157]
[1756818161917,0.06,199.09,199.04,13.59559401]
[1756818162148,10.85715305,199.08,199.04,13.59559401]
[1756818162320,10.85715305,199.07,199.04,13.59559401]
[1756818162606,0.06,199.09,199.04,13.59559401]
[1756818162825,10.85715305,199.08,199.04,13.59559401]
[1756818163136,0.06,199.09,199.06,13.59559401]
[1756818163444,10.85715305,199.08,199.06,13.59559401]
[1756818163734,11.55715305,199.08,199.06,13.59559401]
[1756818163917,0.06,199.09,199.06,13.59559401]
[1756818164119,10.83455431,199.07,199.06,13.59559401]
[1756818164705,0.06,199.09,199.03,0.14216157]
[1756818164902,10.85715305,199.07,199.05,13.59559401]
[1756818165328,0.06,199.09,199.02,0.14216157]
[1756818165329,11.55715305,199.06,199.02,0.14216157]
[1756818165538,10.85715305,199.03,198.99,13.59559401]
[1756818165712,17.63999239,199.09,198.98,13.59559401]
[1756818165912,26.7,199.06,199.0,13.59559401]
[1756818166133,10.85715305,199.04,199.0,13.59559401]
[1756818166321,10.85715305,199.03,199.0,13.59559401]
[1756818166528,11.55715305,199.03,199.02,13.59559401]
[1756818166802,5.72310628,199.08,199.02,13.59559401]
[1756818167008,5.72310628,199.08,199.03,0.14216157]
[1756818167009,0.7,199.08,199.03,0.14216157]
[1756818167224,10.85715305,199.07,199.05,13.59559401]
[1756818167439,11.55715305,199.06,199.05,13.59559401]
[1756818167606,11.55715305,199.06,199.0,13.59559401]
[1756818167806,10.85715305,199.03,199.02,13.59559401]
[1756818168209,0.7,199.06,199.02,13.59559401]
[1756818168407,26.7,199.06,199.02,13.59559401]
[1756818168836,0.06,199.09,199.02,13.59559401]
[1756818169011,10.85715305,199.05,199.02,18.62021016]
[1756818169329,31.78296518,199.09,199.02,18.62021016]
[1756818169330,10.85715305,199.06,199.02,18.62021016]
[1756818169505,10.85715305,199.06,199.03,0.14216157]
[1756818169707,0.76,199.09,199.05,13.59559401]
[1756818169905,10.91715305,199.09,199.05,13.59559401]
[1756818170105,10.91715305,199.09,199.06,0.14216157]
[1756818170106,0.06,199.09,199.06,0.14216157]
[1756818170342,0.06,199.09,199.08,24.45274706]
[1756818170546,0.06,199.09,199.08,25.31490863]
[1756818170721,0.06,199.09,199.08,30.33801491]
[1756818171037,0.06,199.09,199.08,19.48086186]
[1756818171243,0.06,199.09,199.08,30.33801491]
[1756818171612,0.06,199.09,199.08,67.71490863]
[1756818171917,0.06,199.09,199.08,72.73801491]
[1756818172815,0.06,199.09,199.08,61.88086186]
[1756818173013,0.06,199.09,199.08,72.73801491]
[1756818173237,0.06,199.09,199.08,13.73775558]
[1756818173445,0.06,199.09,199.08,13.59559401]
[1756818173810,0.06,199.09,199.08,55.99559401]
[1756818174211,0.06,199.09,199.08,13.59559401]
[1756818174721,0.06,199.09,199.08,55.99559401]
[1756818174926,11.61715305,199.09,199.01,0.72]
[1756818175232,0.76,199.09,199.03,13.59559401]
[1756818175432,0.76,199.09,199.04,0.14216157]
[1756818175628,0.76,199.09,199.06,13.73775558]
[1756818176521,0.06,199.09,199.06,13.73775558]
[1756818176727,0.06,199.09,199.06,18.76125677]
[1756818176955,0.06,199.09,199.07,10.85715305]
[1756818177241,0.06,199.09,199.08,66.97490863]
[1756818177746,0.06,199.09,199.08,67.69490863]
[1756818178415,0.06,199.09,199.08,56.83775558]
[1756818178633,0.06,199.09,199.08,72.71801491]
[1756818179018,0.06,199.09,199.08,30.33801491]
[1756818179214,0.06,199.09,199.08,25.31490863]
[1756818179419,0.06,199.09,199.08,67.69490863]
[1756818179625,0.06,199.09,199.08,73.22032553]
[1756818179839,0.06,199.09,199.08,66.81274706]
[1756818180244,0.06,199.09,199.08,66.95490863]
[1756818180614,0.06,199.09,199.08,71.97801491]
[1756818180938,0.06,199.09,199.08,72.69801491]
[1756818181139,0.06,199.09,199.08,30.33801491]
[1756818181321,0.06,199.09,199.08,72.69801491]
[1756818181734,0.06,199.09,199.08,24.59490863]
[1756818181939,0.06,199.09,199.08,67.67490863]
[1756818182136,0.06,199.09,199.08,66.95490863]
[1756818182342,0.06,199.09,199.08,13.73775558]
[1756818182522,0.06,199.09,199.08,55.95559401]
[1756818182717,0.06,199.09,199.08,71.83585334]
[1756818182920,0.06,199.09,199.08,60.97870029]
[1756818183126,0.06,199.09,199.08,71.97801491]
[1756818183825,0.76,199.09,199.08,13.59559401]
[1756818184024,0.76,199.09,199.08,55.95559401]
[1756818184227,0.76,199.09,199.08,13.59559401]
[1756818184446,0.06,199.09,199.08,71.81585334]
[1756818184746,0.06,199.09,199.08,72.67801491]
[1756818184949,0.06,199.09,199.08,29.61801491]
[1756818185119,0.06,199.09,199.08,18.76086186]
[1756818185320,0.06,199.09,199.08,56.07775558]
[1756818185515,0.06,199.09,199.08,13.59559401]
[1756818185516,0.76,199.09,199.08,13.59559401]
[1756818185735,37.61715305,199.09,199.08,42.34]
[1756818186429,11.61715305,199.09,199.08,42.34]
[1756818186627,0.76,199.09,199.08,42.34]
[1756818186826,0.06,199.09,199.08,55.93559401]
[1756818187030,0.06,199.09,199.08,61.10086186]
[1756818187323,10.91715305,199.09,199.08,55.93559401]
[1756818187546,27.49716008,199.09,198.96,0.72]
[1756818187728,10.85715305,199.0,198.97,42.34]
[1756818188249,0.7,199.03,198.98,13.59559401]
[1756818188460,10.85715305,199.02,198.98,13.59559401]
[1756818188751,10.85715305,199.02,199.01,13.59559401]
[1756818189049,10.85715305,199.05,199.02,0.14216157]
[1756818189343,10.85715305,199.07,199.02,0.84216157]
[1756818189526,10.85715305,199.07,199.04,0.14216157]
[1756818189722,0.77,199.09,199.06,13.59559401]
[1756818189927,10.85715305,199.07,199.06,13.59559401]
[1756818190141,0.71,199.08,199.06,13.59559401]
[1756818190450,0.06,199.09,199.08,13.73775558]
[1756818190947,0.06,199.09,199.08,30.31801491]
[1756818191447,0.06,199.09,199.08,13.73775558]
[1756818191662,0.06,199.09,199.04,26.0]
[1756818191826,10.91715305,199.09,199.06,0.14216157]
[1756818192020,0.06,199.09,199.06,0.14216157]
[1756818192541,0.06,199.09,199.08,13.59559401]
[1756818192928,0.06,199.09,199.08,55.91559401]
[1756818193124,0.06,199.09,199.08,13.59559401]
[1756818193331,11.62715305,199.09,199.08,42.32]
[1756818193645,0.06,199.09,199.08,55.91559401]
[1756818193944,0.06,199.09,199.08,56.05775558]
[1756818194339,0.06,199.09,199.08,13.73775558]
[1756818194546,8.55319977,199.09,199.08,55.91559401]
[1756818194724,8.55319977,199.09,199.08,13.59559401]
[1756818194933,0.77,199.09,199.08,55.91559401]
[1756818195148,9.26319977,199.09,199.08,55.91559401]
[1756818195354,9.26319977,199.09,199.08,42.32]
[1756818195355,0.06,199.09,199.08,42.32]
[1756818195546,8.55319977,199.09,199.08,42.32]
[1756818196324,9.26319977,199.09,199.08,42.32]
[1756818196852,0.77,199.09,199.08,42.32]
[1756818197039,9.26319977,199.09,199.06,13.62559401]
[1756818197239,0.06,199.09,199.07,42.32]
[1756818197444,0.06,199.09,199.08,13.73775558]
[1756818198070,0.06,199.09,199.08,22.93095535]
[1756818198239,0.06,199.09,199.08,56.73775558]
[1756818198432,0.06,199.09,199.08,65.23095535]
[1756818198946,0.06,199.09,199.08,61.76086186]
[1756818199466,0.06,199.09,199.08,69.55406163]
[1756818199676,0.06,199.09,199.08,18.76086186]
[1756818199838,0.06,199.09,199.08,61.06086186]
[1756818200161,0.06,199.09,199.08,56.03775558]
[1756818200458,0.06,199.09,199.08,61.06086186]
[1756818200657,0.06,199.09,199.08,69.55406163]
[1756818201244,0.06,199.09,199.08,27.25406163]
[1756818201436,0.06,199.09,199.08,69.55406163]
[1756818202050,0.06,199.09,199.08,61.06086186]
[1756818202248,0.06,199.09,199.08,70.25406163]
[1756818203464,0.06,199.09,199.08,27.25406163]
[1756818203771,0.06,199.09,199.08,61.04086186]
[1756818204060,0.06,199.09,199.08,70.23406163]
[1756818204762,0.06,199.09,199.08,13.73775558]
[1756818204966,0.06,199.09,199.08,61.04086186]
[1756818205131,0.06,199.09,199.08,55.87559401]
[1756818205336,0.06,199.09,199.08,18.61870029]
[1756818205538,0.06,199.09,199.08,60.89870029]
[1756818205834,0.06,199.09,199.08,18.76086186]
[1756818206035,0.06,199.09,199.08,61.04086186]
[1756818206259,0.06,199.09,199.08,70.23406163]
[1756818206634,0.06,199.09,199.08,65.21095535]
[1756818206830,0.06,199.09,199.08,70.23406163]
[1756818207273,8.25630238,199.26,199.08,70.23406163]
[1756818207274,36.7515188,199.27,199.08,70.23406163]
[1756818207451,8.49319977,199.17,199.13,0.14216157]
[1756818207648,8.49319977,199.15,199.14,55.87559401]
[1756818208041,8.49319977,199.16,199.15,13.59559401]
[1756818208235,8.49319977,199.16,199.15,55.85559401]
[1756818208651,8.49319977,199.17,199.15,55.85559401]
[1756818208859,8.49319977,199.16,199.13,0.14216157]
[1756818209137,4.0737282,199.25,199.06,31.05345229]
[1756818209138,133.8,199.24,199.08,13.59559401]
[1756818209352,8.49319977,199.17,199.11,0.14216157]
[1756818209673,8.49319977,199.16,199.13,13.73775558]
[1756818209861,8.49319977,199.16,199.15,13.59559401]
[1756818210039,5.01907247,199.24,199.15,13.59559401]
[1756818210242,5.01907247,199.24,199.17,13.59559401]
[1756818210556,26.0,199.21,199.18,42.26]
[1756818210770,26.0,199.21,199.19,42.26]
[1756818210995,26.0,199.21,199.2,42.26]
[1756818211150,26.0,199.21,199.2,40.16]
[1756818211151,26.71,199.21,199.2,40.16]
[1756818211344,31.01982832,199.21,199.2,40.16]
[1756818211948,48.00622786,199.21,199.2,40.16]
[1756818213049,39.51302809,199.21,199.2,40.16]
[1756818213250,48.06622786,199.21,199.2,40.16]
[1756818213477,61.32579866,199.21,199.16,42.24]
[1756818213783,8.49319977,199.17,199.16,42.24]
[1756818213957,26.0,199.18,199.16,42.24]
[1756818214159,34.49319977,199.17,199.16,42.24]
[1756818214557,8.49319977,199.17,199.11,13.59559401]
[1756818214761,8.49319977,199.14,199.12,42.24]
[1756818215353,5.02033234,199.19,199.12,55.83559401]
[1756818215553,5.02033234,199.19,199.13,13.59559401]
[1756818215757,8.49319977,199.14,199.13,13.59559401]
[1756818216168,5.02033234,199.19,199.13,13.59559401]
[1756818216371,8.49319977,199.14,199.13,13.59559401]
[1756818216760,8.49319977,199.14,199.11,0.14216157]
[1756818217081,8.49319977,199.12,199.07,13.59559401]
[1756818217265,26.0,199.17,199.09,13.59559401]
[1756818217578,17.5711632,199.19,199.09,13.59559401]
[1756818217579,26.0,199.16,199.09,13.59559401]
[1756818218265,26.0,199.16,199.07,13.73775558]
[1756818218454,26.0,199.16,199.06,0.03]
[1756818218455,8.49319977,199.09,199.08,55.81559401]
[1756818218653,38.55312992,199.16,199.09,13.59559401]
[1756818218888,8.49319977,199.1,199.09,13.59559401]
[1756818219095,5.02134069,199.15,199.09,13.59559401]
[1756818219393,8.49319977,199.1,199.06,0.03]
[1756818219565,8.49319977,199.07,199.06,0.03]
[1756818219750,8.49319977,199.07,199.06,55.84559401]
[1756818220177,26.0,199.12,199.07,13.59559401]
[1756818220386,8.49319977,199.08,199.07,13.59559401]
[1756818221065,8.49319977,199.08,199.06,0.03]
[1756818221271,5.02213974,199.12,199.07,42.22]
[1756818221578,8.49319977,199.08,199.07,55.81559401]
[1756818222464,8.49319977,199.08,199.07,42.22]
[1756818222670,25.10319411,199.18,199.06,0.03]
[1756818222900,26.0,199.12,199.07,35.58]
[1756818223059,26.0,199.12,199.06,0.03]
[1756818223060,8.49319977,199.08,199.06,0.03]
[1756818223261,8.49319977,199.07,199.06,0.03]
[1756818223886,8.49319977,199.07,199.06,42.25]
[1756818224758,5.02310628,199.08,199.06,42.25]
[1756818224958,8.49319977,199.07,199.06,42.25]
[1756818225359,8.49319977,199.07,199.06,0.03]
[1756818225559,8.49319977,199.07,199.06,42.23]
[1756818226356,12.55233971,199.17,199.07,13.59559401]
[1756818226568,8.49319977,199.11,199.08,0.14216157]
[1756818226786,8.49319977,199.11,199.08,0.83216157]
[1756818226973,8.49319977,199.1,199.06,42.23]
[1756818227170,8.49319977,199.1,199.07,14.28559401]
[1756818227580,3.39679496,199.09,199.08,55.79559401]
[1756818228173,3.39679496,199.1,199.09,13.59559401]
[1756818228392,5.02033234,199.19,199.1,0.14216157]
[1756818228688,3.39679496,199.13,199.1,0.14216157]
[1756818228891,3.39679496,199.11,199.1,0.14216157]
[1756818229067,3.39679496,199.11,199.1,13.59559401]
[1756818229264,31.02171726,199.14,199.06,0.03]
[1756818229464,8.49515164,199.07,199.06,0.03]
[1756818229666,8.49515164,199.07,199.06,42.23]
[1756818230089,8.49515164,199.07,199.06,0.03]
[1756818230588,8.49515164,199.08,199.06,0.03]
[1756818230767,13.51851025,199.07,199.06,0.03]
[1756818231181,5.02335861,199.07,199.06,0.03]
[1756818231365,8.49515164,199.07,199.06,0.03]
[1756818232886,34.49515164,199.07,199.06,0.03]
[1756818233369,35.16515164,199.07,199.06,0.03]
[1756818233872,26.0,199.07,199.06,0.03]
[1756818234071,34.49515164,199.07,199.06,0.03]
[1756818234272,8.49515164,199.07,199.06,0.03]
[1756818234664,8.49515164,199.07,199.06,14.31559401]
[1756818235063,8.49515164,199.07,199.06,56.49559401]
[1756818235264,8.49515164,199.07,199.06,55.80559401]
[1756818235684,8.49515164,199.07,199.06,0.03]
[1756818235888,14.18851025,199.07,199.06,42.21]
[1756818236075,13.51851025,199.07,199.06,42.21]
[1756818236460,5.02278728,199.1,199.06,42.21]
[1756818236686,5.02278728,199.1,199.06,56.49559401]
[1756818236883,8.49515164,199.1,199.07,13.59559401]
[1756818237212,8.49515164,199.1,199.07,18.61894545]
[1756818237385,8.49515164,199.1,199.09,13.59559401]
[1756818237564,8.49515164,199.1,199.09,14.28559401]
[1756818237764,8.49515164,199.1,199.09,56.46559401]
[1756818238273,8.49515164,199.1,199.09,55.77559401]
[1756818238601,26.0,199.14,199.09,55.77559401]
[1756818238787,8.49515164,199.1,199.09,56.46559401]
[1756818239091,26.0,199.14,199.09,56.46559401]
[1756818239299,8.49515164,199.1,199.09,55.77559401]
[1756818239607,8.49515164,199.1,199.09,55.91775558]
[1756818239784,8.49515164,199.1,199.06,0.17216157]
[1756818239980,8.49515164,199.07,199.06,0.03]
[1756818240302,8.49515164,199.07,199.06,55.78559401]
[1756818240670,0.67,199.12,199.06,55.78559401]
[1756818240873,8.49515164,199.07,199.06,55.78559401]
[1756818241189,8.49515164,199.07,199.06,56.47559401]
[1756818241677,8.49515164,199.07,199.06,0.03]
[1756818241880,13.51851025,199.07,199.06,42.19]
[1756818242389,5.02285398,199.09,199.07,13.59559401]
[1756818242569,9.16515164,199.08,199.06,42.19]
[1756818242888,8.49515164,199.07,199.06,42.19]
[1756818243090,13.51851025,199.07,199.06,42.19]
[1756818243486,13.51851025,199.07,199.06,0.03]
[1756818243487,14.18851025,199.07,199.06,0.03]
[1756818243686,26.0,199.05,199.04,0.03]
[1756818243886,34.49515164,199.05,199.04,0.03]
[1756818244211,34.49515164,199.05,199.02,36.28]
[1756818244416,8.49515164,199.03,199.01,42.16]
[1756818244610,26.0,199.05,199.01,42.16]
[1756818244611,9.16515164,199.02,199.01,42.16]
[1756818244820,26.0,198.99,198.9,3.05800717]
[1756818245022,5.02563071,198.98,198.91,42.16]
[1756818245172,5.02563071,198.98,198.91,42.85]
[1756818245173,8.49515164,198.92,198.91,42.85]
[1756818245377,8.49515164,198.92,198.91,56.44559401]
[1756818246081,5.02542885,198.99,198.92,13.59559401]
[1756818246294,8.49515164,198.94,198.92,13.59559401]
[1756818246603,8.49515164,198.94,198.93,42.83]
[1756818246972,31.0254273,198.99,198.94,13.59559401]
[1756818247177,5.02500179,199.01,198.95,0.69]
[1756818247393,8.49515164,198.98,198.95,0.69]
[1756818247597,8.49515164,198.98,198.95,0.14216157]
[1756818247784,8.49515164,198.98,198.97,13.59559401]
[1756818247984,13.22984953,199.05,198.97,56.44559401]
[1756818247985,0.67,199.05,198.97,56.44559401]
[1756818248301,8.49515164,199.03,198.99,13.59559401]
[1756818248596,8.49515164,199.02,199.01,13.59559401]
[1756818248799,8.49515164,199.02,199.01,55.73559401]
[1756818249185,8.49515164,199.02,199.01,56.39559401]
[1756818249384,8.49515164,199.03,199.01,56.39559401]
[1756818250099,8.49515164,199.03,199.01,55.73559401]
[1756818250300,8.49515164,199.06,199.03,13.59559401]
[1756818250609,8.49515164,199.06,199.04,42.14]
[1756818250784,5.02314079,199.08,199.04,55.73559401]
[1756818250989,13.5191692,199.05,199.01,13.59559401]
[1756818251189,8.49515164,199.02,198.98,13.59559401]
[1756818251381,8.49515164,199.02,199.0,13.59559401]
[1756818251580,5.02401756,199.05,199.0,13.59559401]
[1756818251581,8.49515164,199.03,199.0,14.25559401]
[1756818251781,8.49515164,199.03,199.01,0.03]
[1756818252108,8.49515164,199.03,199.02,42.14]
[1756818252399,8.49515164,199.04,199.02,42.14]
[1756818252907,8.49515164,199.03,199.02,55.73559401]
[1756818253594,5.02388304,199.05,199.02,55.73559401]
[1756818253794,8.49515164,199.03,199.02,55.73559401]
[1756818253992,8.49515164,199.03,199.02,13.59559401]
[1756818254178,8.49515164,199.03,199.02,55.73559401]
[1756818254380,5.02388304,199.05,199.02,55.73559401]
[1756818254579,8.49515164,199.04,199.02,55.73559401]
[1756818254781,31.02364199,199.06,199.03,0.66]
[1756818255092,8.49515164,199.04,199.02,55.73559401]
[1756818255280,8.49515164,199.03,199.02,55.73559401]
[1756818255610,26.0,199.06,199.02,55.73559401]
[1756818255611,26.0,199.06,199.02,56.39559401]
[1756818255786,12.8236317,199.08,199.03,14.25559401]
[1756818255992,12.8236317,199.05,199.03,13.59559401]
[1756818256197,12.8236317,199.04,199.02,13.59559401]
[1756818256393,12.8236317,199.03,199.02,13.59559401]
[1756818256601,0.69,199.08,199.02,55.71559401]
[1756818256798,12.8236317,199.05,199.02,56.37559401]
[1756818256995,12.8236317,199.05,199.03,0.66]
[1756818257418,5.54062548,199.19,199.05,13.73775558]
[1756818257726,12.8236317,199.12,199.07,13.59559401]
[1756818258027,12.8236317,199.12,199.07,14.25559401]
[1756818258318,12.8236317,199.12,199.08,0.66]